[Event "Titled Tuesday Blitz August 08 Late 2023"]
[White "Goltsev, Dmitry"]
[Black "Castro Silva, Moises Antonio"]
[WhiteFideId "24176710"]
[BlackFideId "3909794"]
[WhiteElo "2633"]
[BlackElo "2448"]
[Result "1-0"]
[Round "4"]
[TimeControl "180+1"]
[Date "2023.08.08"]
[WhiteClock "0:00:20"]
[BlackClock "0:00:01"]
[Board "90"]

1. e4 {[%clk 0:02:59]}  c5 {[%clk 0:02:59]} 2. Nf3 {[%clk 0:02:59]}  Nc6 {[%clk 0:02:59]} 3. d4 {[%clk 0:03:00]}  cxd4 {[%clk 0:03:00]} 4. Nxd4 {[%clk 0:03:01]}  Nf6 {[%clk 0:03:00]} 5. Nc3 {[%clk 0:03:01]}  e5 {[%clk 0:03:00]} 6. Nf5 {[%clk 0:03:01]}  d5 {[%clk 0:02:59]} 7. exd5 {[%clk 0:03:02]}  Bxf5 {[%clk 0:02:58]} 8. dxc6 {[%clk 0:03:03]}  bxc6 {[%clk 0:02:58]} 9. Bd3 {[%clk 0:03:03]}  Bxd3 {[%clk 0:02:58]} 10. Qxd3 {[%clk 0:03:04]}  Qxd3 {[%clk 0:02:57]} 11. cxd3 {[%clk 0:03:04]}  O-O-O {[%clk 0:02:57]} 12. Ke2 {[%clk 0:03:05]}  Bc5 {[%clk 0:02:47]} 13. Bg5 {[%clk 0:03:04]}  Bd4 {[%clk 0:02:42]} 14. Rac1 {[%clk 0:03:01]}  Kb7 {[%clk 0:02:29]} 15. Rc2 {[%clk 0:02:55]}  Rd6 {[%clk 0:02:25]} 16. Bxf6 {[%clk 0:02:55]}  Rxf6 {[%clk 0:02:10]} 17. Ne4 {[%clk 0:02:54]}  Rg6 {[%clk 0:02:10]} 18. Rhc1 {[%clk 0:02:50]}  Rc8 {[%clk 0:02:07]} 19. b4 {[%clk 0:02:46]}  f5 {[%clk 0:01:53]} 20. Ng3 {[%clk 0:02:42]}  Rf6 {[%clk 0:01:35]} 21. f3 {[%clk 0:02:34]}  g6 {[%clk 0:01:35]} 22. Kd2 {[%clk 0:02:27]}  Rd6 {[%clk 0:01:17]} 23. Ne2 {[%clk 0:02:25]}  Rcd8 {[%clk 0:01:06]} 24. Nxd4 {[%clk 0:02:23]}  Rxd4 {[%clk 0:01:07]} 25. Rxc6 {[%clk 0:02:18]}  Rxd3+ {[%clk 0:01:07]} 26. Ke1 {[%clk 0:02:17]}  R8d7 {[%clk 0:00:38]} 27. R6c5 {[%clk 0:02:15]}  e4 {[%clk 0:00:20]} 28. Rb5+ {[%clk 0:02:08]}  Ka6 {[%clk 0:00:20]} 29. a4 {[%clk 0:02:08]}  R7d6 {[%clk 0:00:12]} 30. fxe4 {[%clk 0:02:07]}  fxe4 {[%clk 0:00:12]} 31. Rc7 {[%clk 0:01:57]}  e3 {[%clk 0:00:09]} 32. Ke2 {[%clk 0:01:51]}  Rd2+ {[%clk 0:00:08]} 33. Kxe3 {[%clk 0:01:50]}  Rxg2 {[%clk 0:00:08]} 34. Rxh7 {[%clk 0:01:36]}  Re6+ {[%clk 0:00:06]} 35. Kf3 {[%clk 0:01:34]}  Rb2 {[%clk 0:00:06]} 36. Rbb7 {[%clk 0:01:21]}  Rb3+ {[%clk 0:00:06]} 37. Kf4 {[%clk 0:01:20]}  Re2 {[%clk 0:00:05]} 38. Rxa7+ {[%clk 0:01:16]}  Kb6 {[%clk 0:00:06]} 39. Rab7+ {[%clk 0:01:13]}  Ka6 {[%clk 0:00:05]} 40. h4 {[%clk 0:00:49]}  Rf2+ {[%clk 0:00:04]} 41. Kg5 {[%clk 0:00:50]}  Rg2+ {[%clk 0:00:04]} 42. Kh6 {[%clk 0:00:50]}  Rh3 {[%clk 0:00:05]} 43. Ra7+ {[%clk 0:00:44]}  Kb6 {[%clk 0:00:05]} 44. Rhb7+ {[%clk 0:00:44]}  Kc6 {[%clk 0:00:05]} 45. b5+ {[%clk 0:00:45]}  Kc5 {[%clk 0:00:05]} 46. Rc7+ {[%clk 0:00:45]}  Kb6 {[%clk 0:00:04]} 47. Rab7+ {[%clk 0:00:41]}  Ka5 {[%clk 0:00:05]} 48. Rc4 {[%clk 0:00:41]}  g5 {[%clk 0:00:04]} 49. h5 {[%clk 0:00:30]}  g4 {[%clk 0:00:04]} 50. Ra7+ {[%clk 0:00:29]}  Kb6 {[%clk 0:00:04]} 51. Ra6+ {[%clk 0:00:30]}  Kb7 {[%clk 0:00:05]} 52. Rg6 {[%clk 0:00:30]}  Rgh2 {[%clk 0:00:03]} 53. Rg5 {[%clk 0:00:28]}  g3 {[%clk 0:00:03]} 54. a5 {[%clk 0:00:27]}  g2 {[%clk 0:00:03]} 55. Rcg4 {[%clk 0:00:26]}  Rf3 {[%clk 0:00:01]} 56. Rg7+ {[%clk 0:00:21]}  Kb8 {[%clk 0:00:01]} 57. Rg8+ {[%clk 0:00:20]}  Kc7 {[%clk 0:00:02]} 58. Rxg2 {[%clk 0:00:18]}  Rxg2 {[%clk 0:00:01]} 59. Rxg2 {[%clk 0:00:19]}  Rf5 {[%clk 0:00:01]} 60. Rg5 {[%clk 0:00:19]}  Rf4 {[%clk 0:00:01]} 61. Kg6 {[%clk 0:00:19]}  Rb4 {[%clk 0:00:01]} 62. h6 {[%clk 0:00:20]} 1-0


[Site "https://www.chess.com"]

[Event "Titled Tuesday Blitz August 08 Late 2023"]
[White "Hristodoulou, Panagiotis"]
[Black "Schwabeneder, Florian"]
[WhiteFideId "4214340"]
[BlackFideId "1626191"]
[WhiteElo "2465"]
[BlackElo "2624"]
[Result "1-0"]
[Round "4"]
[TimeControl "180+1"]
[Date "2023.08.08"]
[WhiteClock "0:00:07"]
[BlackClock "0:00:03"]
[Board "91"]

1. d4 {[%clk 0:02:52]}  Nf6 {[%clk 0:02:59]} 2. Nc3 {[%clk 0:02:51]}  d5 {[%clk 0:02:59]} 3. Bf4 {[%clk 0:02:51]}  c6 {[%clk 0:02:58]} 4. e3 {[%clk 0:02:51]}  Bf5 {[%clk 0:02:57]} 5. Nf3 {[%clk 0:02:51]}  h6 {[%clk 0:02:56]} 6. Bd3 {[%clk 0:02:51]}  Bg4 {[%clk 0:02:55]} 7. h3 {[%clk 0:02:51]}  Bxf3 {[%clk 0:02:54]} 8. Qxf3 {[%clk 0:02:52]}  e6 {[%clk 0:02:54]} 9. O-O {[%clk 0:02:46]}  Qb6 {[%clk 0:02:52]} 10. a3 {[%clk 0:02:40]}  Nbd7 {[%clk 0:02:51]} 11. Rfe1 {[%clk 0:02:27]}  Be7 {[%clk 0:02:51]} 12. g4 {[%clk 0:02:07]}  Qd8 {[%clk 0:02:34]} 13. Rad1 {[%clk 0:01:56]}  Nh7 {[%clk 0:02:23]} 14. e4 {[%clk 0:01:55]}  dxe4 {[%clk 0:02:19]} 15. Nxe4 {[%clk 0:01:55]}  Ndf6 {[%clk 0:02:20]} 16. c4 {[%clk 0:01:52]}  Nxe4 {[%clk 0:02:17]} 17. Bxe4 {[%clk 0:01:46]}  Nf6 {[%clk 0:02:15]} 18. Bc2 {[%clk 0:01:41]}  O-O {[%clk 0:02:12]} 19. Qd3 {[%clk 0:01:30]}  Qa5 {[%clk 0:02:02]} 20. Be5 {[%clk 0:01:25]}  g6 {[%clk 0:02:01]} 21. Qf3 {[%clk 0:01:12]}  Nh7 {[%clk 0:01:54]} 22. b4 {[%clk 0:01:03]}  Qb6 {[%clk 0:01:41]} 23. d5 {[%clk 0:01:03]}  cxd5 {[%clk 0:01:37]} 24. cxd5 {[%clk 0:01:03]}  exd5 {[%clk 0:01:30]} 25. Rxd5 {[%clk 0:00:55]}  Rae8 {[%clk 0:01:22]} 26. Bb3 {[%clk 0:00:49]}  Bf6 {[%clk 0:01:18]} 27. Re3 {[%clk 0:00:43]}  Bxe5 {[%clk 0:01:15]} 28. Rdxe5 {[%clk 0:00:42]}  Rxe5 {[%clk 0:01:14]} 29. Rxe5 {[%clk 0:00:43]}  Qd6 {[%clk 0:01:07]} 30. Rd5 {[%clk 0:00:41]}  Qe7 {[%clk 0:01:04]} 31. Kg2 {[%clk 0:00:36]}  Ng5 {[%clk 0:01:03]} 32. Qd3 {[%clk 0:00:36]}  Ne6 {[%clk 0:00:51]} 33. Qe3 {[%clk 0:00:28]}  Qf6 {[%clk 0:00:50]} 34. Kh2 {[%clk 0:00:22]}  Rc8 {[%clk 0:00:47]} 35. Rd3 {[%clk 0:00:15]}  Nf4 {[%clk 0:00:44]} 36. Rd7 {[%clk 0:00:15]}  Rf8 {[%clk 0:00:25]} 37. Qe7 {[%clk 0:00:14]}  Qxe7 {[%clk 0:00:17]} 38. Rxe7 {[%clk 0:00:15]}  Kg7 {[%clk 0:00:16]} 39. Rxb7 {[%clk 0:00:14]}  Kf6 {[%clk 0:00:16]} 40. Rxa7 {[%clk 0:00:14]}  g5 {[%clk 0:00:17]} 41. b5 {[%clk 0:00:14]}  Rc8 {[%clk 0:00:16]} 42. Rxf7+ {[%clk 0:00:14]}  Ke5 {[%clk 0:00:16]} 43. Rf5+ {[%clk 0:00:14]}  Ke4 {[%clk 0:00:16]} 44. b6 {[%clk 0:00:12]}  Rc3 {[%clk 0:00:15]} 45. Rb5 {[%clk 0:00:06]}  Rxh3+ {[%clk 0:00:14]} 46. Kg1 {[%clk 0:00:07]}  Ne2+ {[%clk 0:00:12]} 47. Kf1 {[%clk 0:00:07]}  Nd4 {[%clk 0:00:12]} 48. Rb4 {[%clk 0:00:07]}  Rxb3 {[%clk 0:00:09]} 49. Rxb3 {[%clk 0:00:06]}  Nxb3 {[%clk 0:00:10]} 50. b7 {[%clk 0:00:07]}  Nd2+ {[%clk 0:00:03]} 51. Kg2 {[%clk 0:00:07]} 1-0


[Site "https://www.chess.com"]

[Event "Titled Tuesday Blitz August 08 Late 2023"]
[White "Sliwicki, Damian"]
[Black "Pantev, Veselin"]
[WhiteFideId "1127128"]
[BlackFideId "2901390"]
[WhiteElo "2433"]
[BlackElo "2613"]
[Result "0-1"]
[Round "4"]
[TimeControl "180+1"]
[Date "2023.08.08"]
[WhiteClock "0:01:11"]
[BlackClock "0:02:10"]
[Board "93"]

1. e4 {[%clk 0:02:47]}  c6 {[%clk 0:02:57]} 2. Nc3 {[%clk 0:02:46]}  d5 {[%clk 0:02:58]} 3. Nf3 {[%clk 0:02:46]}  dxe4 {[%clk 0:02:58]} 4. Nxe4 {[%clk 0:02:47]}  Nf6 {[%clk 0:02:59]} 5. Nxf6+ {[%clk 0:02:45]}  exf6 {[%clk 0:02:59]} 6. d4 {[%clk 0:02:46]}  Bd6 {[%clk 0:02:59]} 7. Bd3 {[%clk 0:02:45]}  O-O {[%clk 0:02:59]} 8. O-O {[%clk 0:02:45]}  Re8 {[%clk 0:02:57]} 9. h3 {[%clk 0:02:45]}  Nd7 {[%clk 0:02:57]} 10. c4 {[%clk 0:02:44]}  Nf8 {[%clk 0:02:57]} 11. b3 {[%clk 0:02:45]}  Be6 {[%clk 0:02:56]} 12. Bb2 {[%clk 0:02:45]}  Qd7 {[%clk 0:02:56]} 13. Re1 {[%clk 0:02:41]}  Ng6 {[%clk 0:02:54]} 14. Nh2 {[%clk 0:02:17]}  Bxh3 {[%clk 0:02:31]} 15. gxh3 {[%clk 0:02:12]}  Qxh3 {[%clk 0:02:22]} 16. Rxe8+ {[%clk 0:01:43]}  Rxe8 {[%clk 0:02:21]} 17. f4 {[%clk 0:01:42]}  Bxf4 {[%clk 0:02:12]} 18. Nf3 {[%clk 0:01:11]}  Be3# {[%clk 0:02:10]} 0-1


[Site "https://www.chess.com"]

[Event "Titled Tuesday Blitz August 08 Late 2023"]
[White "Swicarz, Maciej"]
[Black "Golubev, Mikhail"]
[WhiteFideId "1113585"]
[BlackFideId "14100983"]
[WhiteElo "2441"]
[BlackElo "2609"]
[Result "0-1"]
[Round "4"]
[TimeControl "180+1"]
[Date "2023.08.08"]
[WhiteClock "0:00:54"]
[BlackClock "0:00:09"]
[Board "94"]

1. e4 {[%clk 0:03:00]}  c5 {[%clk 0:03:00]} 2. Nc3 {[%clk 0:03:00]}  d6 {[%clk 0:02:57]} 3. d4 {[%clk 0:03:00]}  cxd4 {[%clk 0:02:55]} 4. Qxd4 {[%clk 0:03:00]}  a6 {[%clk 0:02:51]} 5. b3 {[%clk 0:03:00]}  Nc6 {[%clk 0:02:50]} 6. Qd2 {[%clk 0:03:00]}  Nf6 {[%clk 0:02:27]} 7. Bb2 {[%clk 0:02:59]}  e6 {[%clk 0:02:27]} 8. O-O-O {[%clk 0:02:58]}  Be7 {[%clk 0:02:27]} 9. Kb1 {[%clk 0:02:58]}  O-O {[%clk 0:02:24]} 10. f3 {[%clk 0:02:58]}  b5 {[%clk 0:02:12]} 11. g4 {[%clk 0:02:57]}  Bb7 {[%clk 0:02:07]} 12. h4 {[%clk 0:02:55]}  Nd7 {[%clk 0:02:05]} 13. h5 {[%clk 0:02:51]}  b4 {[%clk 0:01:28]} 14. Nce2 {[%clk 0:02:46]}  a5 {[%clk 0:01:10]} 15. Nd4 {[%clk 0:02:45]}  Nxd4 {[%clk 0:01:06]} 16. Qxd4 {[%clk 0:02:43]}  e5 {[%clk 0:01:03]} 17. Qd2 {[%clk 0:02:38]}  h6 {[%clk 0:00:50]} 18. Bc4 {[%clk 0:02:33]}  Nb6 {[%clk 0:00:44]} 19. Bb5 {[%clk 0:02:29]}  d5 {[%clk 0:00:38]} 20. exd5 {[%clk 0:02:20]}  Nxd5 {[%clk 0:00:26]} 21. Ne2 {[%clk 0:01:58]}  Qc7 {[%clk 0:00:20]} 22. Bc4 {[%clk 0:01:54]}  Rfd8 {[%clk 0:00:20]} 23. Bd3 {[%clk 0:01:40]}  a4 {[%clk 0:00:19]} 24. Rdf1 {[%clk 0:01:33]}  axb3 {[%clk 0:00:18]} 25. axb3 {[%clk 0:01:29]}  Qa5 {[%clk 0:00:18]} 26. Rhg1 {[%clk 0:01:18]}  Bg5 {[%clk 0:00:16]} 27. f4 {[%clk 0:01:14]}  exf4 {[%clk 0:00:14]} 28. Nxf4 {[%clk 0:01:07]}  Nxf4 {[%clk 0:00:12]} 29. Rxf4 {[%clk 0:01:08]}  Rxd3 {[%clk 0:00:11]} 30. Qxd3 {[%clk 0:00:59]}  Qa2+ {[%clk 0:00:09]} 31. Kc1 {[%clk 0:00:58]}  Bxf4+ {[%clk 0:00:09]} 32. Kd1 {[%clk 0:00:54]}  Qxb2 {[%clk 0:00:09]} 0-1


[Site "https://www.chess.com"]

[Event "Titled Tuesday Blitz August 08 Late 2023"]
[White "Manukyan, Sargis A."]
[Black "Bogaudinov, Rushan"]
[WhiteFideId "13303970"]
[BlackFideId "4129288"]
[WhiteElo "2579"]
[BlackElo "2424"]
[Result "0-1"]
[Round "4"]
[TimeControl "180+1"]
[Date "2023.08.08"]
[WhiteClock "0:00:00"]
[BlackClock "0:00:16"]
[Board "96"]

1. d4 {[%clk 0:03:00]}  d5 {[%clk 0:02:59]} 2. c4 {[%clk 0:03:01]}  e6 {[%clk 0:02:59]} 3. Nc3 {[%clk 0:03:02]}  Nf6 {[%clk 0:02:59]} 4. Nf3 {[%clk 0:03:00]}  Be7 {[%clk 0:02:58]} 5. Bg5 {[%clk 0:03:00]}  O-O {[%clk 0:02:59]} 6. e3 {[%clk 0:02:58]}  b6 {[%clk 0:02:56]} 7. cxd5 {[%clk 0:02:58]}  Nxd5 {[%clk 0:02:55]} 8. Bxe7 {[%clk 0:02:59]}  Nxe7 {[%clk 0:02:53]} 9. Bd3 {[%clk 0:02:57]}  Bb7 {[%clk 0:02:43]} 10. Bxh7+ {[%clk 0:02:42]}  Kxh7 {[%clk 0:02:43]} 11. Ng5+ {[%clk 0:02:42]}  Kh6 {[%clk 0:02:39]} 12. Qg4 {[%clk 0:02:30]}  Nf5 {[%clk 0:02:29]} 13. f4 {[%clk 0:02:21]}  g6 {[%clk 0:01:59]} 14. e4 {[%clk 0:01:20]}  Kg7 {[%clk 0:01:58]} 15. exf5 {[%clk 0:01:18]}  exf5 {[%clk 0:01:59]} 16. Qh3 {[%clk 0:01:09]}  Rh8 {[%clk 0:01:57]} 17. Qd3 {[%clk 0:01:07]}  Bxg2 {[%clk 0:01:42]} 18. Rg1 {[%clk 0:00:57]}  Qe7+ {[%clk 0:01:35]} 19. Kd2 {[%clk 0:00:56]}  Bb7 {[%clk 0:01:34]} 20. h3 {[%clk 0:00:51]}  Nd7 {[%clk 0:01:25]} 21. Rae1 {[%clk 0:00:50]}  Qd6 {[%clk 0:01:24]} 22. Kc2 {[%clk 0:00:21]}  Rae8 {[%clk 0:01:13]} 23. d5 {[%clk 0:00:21]}  Qxf4 {[%clk 0:00:59]} 24. Ref1 {[%clk 0:00:17]}  Qe3 {[%clk 0:00:54]} 25. Ne6+ {[%clk 0:00:14]}  Rxe6 {[%clk 0:00:53]} 26. dxe6 {[%clk 0:00:14]}  Qxd3+ {[%clk 0:00:50]} 27. Kxd3 {[%clk 0:00:15]}  fxe6 {[%clk 0:00:50]} 28. Rg3 {[%clk 0:00:13]}  Kf6 {[%clk 0:00:46]} 29. Kc2 {[%clk 0:00:12]}  a6 {[%clk 0:00:39]} 30. Rd1 {[%clk 0:00:10]}  Rh7 {[%clk 0:00:38]} 31. b4 {[%clk 0:00:10]}  Bc6 {[%clk 0:00:38]} 32. Ne2 {[%clk 0:00:11]}  Be4+ {[%clk 0:00:35]} 33. Kb2 {[%clk 0:00:11]}  Ne5 {[%clk 0:00:34]} 34. Nf4 {[%clk 0:00:09]}  g5 {[%clk 0:00:30]} 35. Ne2 {[%clk 0:00:09]}  f4 {[%clk 0:00:29]} 36. Rc3 {[%clk 0:00:09]}  c6 {[%clk 0:00:26]} 37. Nd4 {[%clk 0:00:08]}  Bd5 {[%clk 0:00:23]} 38. Re1 {[%clk 0:00:08]}  Nc4+ {[%clk 0:00:22]} 39. Kc1 {[%clk 0:00:06]}  Ne3 {[%clk 0:00:22]} 40. a4 {[%clk 0:00:06]}  Rxh3 {[%clk 0:00:21]} 41. b5 {[%clk 0:00:06]}  axb5 {[%clk 0:00:21]} 42. axb5 {[%clk 0:00:07]}  c5 {[%clk 0:00:21]} 43. Nc6 {[%clk 0:00:07]}  g4 {[%clk 0:00:19]} 44. Nb8 {[%clk 0:00:07]}  Nc4 {[%clk 0:00:18]} 45. Nd7+ {[%clk 0:00:07]}  Ke7 {[%clk 0:00:17]} 46. Ne5 {[%clk 0:00:05]}  Rxc3+ {[%clk 0:00:17]} 47. Kb1 {[%clk 0:00:00]}  Re3 {[%clk 0:00:16]} 0-1


[Site "https://www.chess.com"]

[Event "Titled Tuesday Blitz August 08 Late 2023"]
[White "Deng, Henry"]
[Black "Djabri, Massinas"]
[WhiteFideId "30965454"]
[BlackFideId "7905726"]
[WhiteElo "2576"]
[BlackElo "2408"]
[Result "1-0"]
[Round "4"]
[TimeControl "180+1"]
[Date "2023.08.08"]
[WhiteClock "0:02:44"]
[BlackClock "0:00:00"]
[Board "97"]

1. e4 {[%clk 0:03:00]}  c5 {[%clk 0:02:59]} 2. Nc3 {[%clk 0:03:00]}  Nc6 {[%clk 0:02:58]} 3. Nf3 {[%clk 0:03:00]}  e5 {[%clk 0:02:58]} 4. Bc4 {[%clk 0:02:57]}  d6 {[%clk 0:02:57]} 5. O-O {[%clk 0:02:56]}  Be6 {[%clk 0:02:57]} 6. d3 {[%clk 0:02:54]}  Nf6 {[%clk 0:02:56]} 7. Kh1 {[%clk 0:02:51]}  Be7 {[%clk 0:02:57]} 8. Ng5 {[%clk 0:02:51]}  Bxc4 {[%clk 0:02:55]} 9. dxc4 {[%clk 0:02:51]}  h6 {[%clk 0:02:54]} 10. Nh3 {[%clk 0:02:51]}  g5 {[%clk 0:02:50]} 11. Ng1 {[%clk 0:02:51]}  Qd7 {[%clk 0:02:48]} 12. Nge2 {[%clk 0:02:51]}  O-O-O {[%clk 0:02:47]} 13. Ng3 {[%clk 0:02:51]}  h5 {[%clk 0:02:41]} 14. Bxg5 {[%clk 0:02:49]}  h4 {[%clk 0:02:39]} 15. Nf5 {[%clk 0:02:47]}  Nd4 {[%clk 0:02:37]} 16. Nxe7+ {[%clk 0:02:46]}  Qxe7 {[%clk 0:02:34]} 17. Nd5 {[%clk 0:02:46]}  Qe6 {[%clk 0:02:34]} 18. Bxf6 {[%clk 0:02:46]}  Rdg8 {[%clk 0:00:00]} 19. Bxh8 {[%clk 0:02:44]} 1-0


[Site "https://www.chess.com"]

[Event "Titled Tuesday Blitz August 08 Late 2023"]
[White "Ismagilov, Damir"]
[Black "littlepinkyboy"]
[WhiteFideId "34199982"]
[WhiteElo "2570"]
[BlackElo "2402"]
[Result "0-1"]
[Round "4"]
[TimeControl "180+1"]
[Date "2023.08.08"]
[WhiteClock "0:00:11"]
[BlackClock "0:00:10"]
[Board "98"]

1. d4 {[%clk 0:02:45]}  d5 {[%clk 0:02:59]} 2. Bf4 {[%clk 0:02:46]}  Nf6 {[%clk 0:02:58]} 3. e3 {[%clk 0:02:46]}  g6 {[%clk 0:02:58]} 4. c4 {[%clk 0:02:45]}  c6 {[%clk 0:02:56]} 5. Nc3 {[%clk 0:02:45]}  Bg7 {[%clk 0:02:57]} 6. h3 {[%clk 0:02:46]}  O-O {[%clk 0:02:57]} 7. Nf3 {[%clk 0:02:46]}  Nbd7 {[%clk 0:02:56]} 8. Be2 {[%clk 0:02:46]}  dxc4 {[%clk 0:02:56]} 9. Bxc4 {[%clk 0:02:46]}  b5 {[%clk 0:02:57]} 10. Bb3 {[%clk 0:02:46]}  Bb7 {[%clk 0:02:56]} 11. O-O {[%clk 0:02:46]}  a6 {[%clk 0:02:56]} 12. Rc1 {[%clk 0:02:44]}  c5 {[%clk 0:02:57]} 13. Ne5 {[%clk 0:02:38]}  cxd4 {[%clk 0:02:54]} 14. Qxd4 {[%clk 0:02:31]}  Nxe5 {[%clk 0:02:50]} 15. Bxe5 {[%clk 0:02:32]}  Qxd4 {[%clk 0:02:48]} 16. Bxd4 {[%clk 0:02:32]}  Rac8 {[%clk 0:02:46]} 17. a4 {[%clk 0:02:23]}  b4 {[%clk 0:02:41]} 18. Na2 {[%clk 0:02:19]}  a5 {[%clk 0:02:34]} 19. f3 {[%clk 0:02:08]}  Bd5 {[%clk 0:02:30]} 20. Bxd5 {[%clk 0:01:59]}  Nxd5 {[%clk 0:02:30]} 21. Bxg7 {[%clk 0:01:56]}  Kxg7 {[%clk 0:02:31]} 22. Kf2 {[%clk 0:01:56]}  b3 {[%clk 0:02:09]} 23. Nc3 {[%clk 0:01:47]}  Nxc3 {[%clk 0:02:06]} 24. Rxc3 {[%clk 0:01:35]}  Rxc3 {[%clk 0:01:59]} 25. bxc3 {[%clk 0:01:36]}  Rc8 {[%clk 0:01:59]} 26. Rc1 {[%clk 0:01:35]}  Rc4 {[%clk 0:01:39]} 27. Rb1 {[%clk 0:00:45]}  Rxc3 {[%clk 0:01:35]} 28. Ke2 {[%clk 0:00:46]}  Rc2+ {[%clk 0:01:32]} 29. Kd3 {[%clk 0:00:46]}  Rxg2 {[%clk 0:01:31]} 30. Rxb3 {[%clk 0:00:47]}  Ra2 {[%clk 0:01:32]} 31. Rb7 {[%clk 0:00:44]}  e6 {[%clk 0:01:24]} 32. f4 {[%clk 0:00:45]}  Rxa4 {[%clk 0:01:22]} 33. h4 {[%clk 0:00:45]}  Ra1 {[%clk 0:01:01]} 34. Ra7 {[%clk 0:00:45]}  a4 {[%clk 0:00:58]} 35. Ke4 {[%clk 0:00:42]}  Kf6 {[%clk 0:00:50]} 36. Kf3 {[%clk 0:00:38]}  a3 {[%clk 0:00:48]} 37. Kg2 {[%clk 0:00:36]}  a2 {[%clk 0:00:41]} 38. Ra5 {[%clk 0:00:33]}  Ke7 {[%clk 0:00:16]} 39. Ra7+ {[%clk 0:00:33]}  Kd6 {[%clk 0:00:15]} 40. e4 {[%clk 0:00:29]}  Kc5 {[%clk 0:00:14]} 41. e5 {[%clk 0:00:28]}  Kd4 {[%clk 0:00:13]} 42. Ra6 {[%clk 0:00:17]}  Ke4 {[%clk 0:00:12]} 43. Ra4+ {[%clk 0:00:16]}  Ke3 {[%clk 0:00:09]} 44. Kh2 {[%clk 0:00:14]}  Kf3 {[%clk 0:00:07]} 45. h5 {[%clk 0:00:15]}  gxh5 {[%clk 0:00:06]} 46. Ra7 {[%clk 0:00:15]}  Kxf4 {[%clk 0:00:05]} 47. Rxf7+ {[%clk 0:00:15]}  Kxe5 {[%clk 0:00:05]} 48. Ra7 {[%clk 0:00:16]}  Kd4 {[%clk 0:00:03]} 49. Ra4+ {[%clk 0:00:16]}  Kd5 {[%clk 0:00:04]} 50. Ra5+ {[%clk 0:00:16]}  Kd6 {[%clk 0:00:04]} 51. Ra6+ {[%clk 0:00:17]}  Ke7 {[%clk 0:00:05]} 52. Ra7+ {[%clk 0:00:17]}  Kf6 {[%clk 0:00:05]} 53. Ra6 {[%clk 0:00:18]}  Kf5 {[%clk 0:00:06]} 54. Ra8 {[%clk 0:00:18]}  e5 {[%clk 0:00:06]} 55. Rf8+ {[%clk 0:00:19]}  Ke4 {[%clk 0:00:07]} 56. Ra8 {[%clk 0:00:19]}  Kf4 {[%clk 0:00:07]} 57. Rf8+ {[%clk 0:00:19]}  Ke3 {[%clk 0:00:07]} 58. Ra8 {[%clk 0:00:20]}  e4 {[%clk 0:00:07]} 59. Kg2 {[%clk 0:00:20]}  h4 {[%clk 0:00:04]} 60. Ra4 {[%clk 0:00:17]}  Kf4 {[%clk 0:00:03]} 61. Ra8 {[%clk 0:00:12]}  e3 {[%clk 0:00:03]} 62. Rf8+ {[%clk 0:00:11]}  Ke4 {[%clk 0:00:04]} 63. Re8+ {[%clk 0:00:12]}  Kd3 {[%clk 0:00:04]} 64. Rd8+ {[%clk 0:00:12]}  Ke2 {[%clk 0:00:04]} 65. Ra8 {[%clk 0:00:12]}  Kd2 {[%clk 0:00:04]} 66. Rd8+ {[%clk 0:00:11]}  Ke1 {[%clk 0:00:04]} 67. Ra8 {[%clk 0:00:11]}  e2 {[%clk 0:00:04]} 68. Ra7 {[%clk 0:00:12]}  Kd2 {[%clk 0:00:04]} 69. Rd7+ {[%clk 0:00:11]}  Kc3 {[%clk 0:00:05]} 70. Rc7+ {[%clk 0:00:11]}  Kb4 {[%clk 0:00:05]} 71. Rb7+ {[%clk 0:00:12]}  Kc5 {[%clk 0:00:06]} 72. Rc7+ {[%clk 0:00:09]}  Kb6 {[%clk 0:00:06]} 73. Re7 {[%clk 0:00:09]}  e1=Q {[%clk 0:00:06]} 74. Rxe1 {[%clk 0:00:08]}  Rxe1 {[%clk 0:00:07]} 75. Kf3 {[%clk 0:00:09]}  Rb1 {[%clk 0:00:08]} 76. Kg4 {[%clk 0:00:10]}  a1=Q {[%clk 0:00:09]} 77. Kh5 {[%clk 0:00:11]}  Rb5+ {[%clk 0:00:09]} 78. Kh6 {[%clk 0:00:12]}  Qf6+ {[%clk 0:00:09]} 79. Kxh7 {[%clk 0:00:11]}  Rh5+ {[%clk 0:00:10]} 0-1


[Site "https://www.chess.com"]